fUST/lending_fUST_20251114
["ID","MTS","AMOUNT","RATE_DAILY","PERIOD"]
[393943294,1763122247220,-1068.70536009,0.00036796,3]
[393943295,1763122247229,-600.0,0.00036848,30]
[393943296,1763122247238,-170.74,0.00037,60]
[393943297,1763122247247,-152.31,0.00037009,60]
[393943298,1763122247257,-150.31,0.00037032,60]
[393943299,1763122247266,-460.73929962,0.00037046,3]
[393943300,1763122247276,-2505.33478151,0.00037046,3]
[393943301,1763122247285,-152.66,0.00037056,60]
[393943302,1763122247295,-2161.0,0.00037056,2]
[393943303,1763122247304,-629.0,0.00037056,2]
[393943304,1763122247313,-164.94,0.000371,30]
[393943305,1763122247323,-152.31,0.00037109,60]
[393943306,1763122247332,-150.31,0.00037132,60]
[393943307,1763122247341,-152.66,0.00037156,60]
[393943308,1763122247351,-152.31,0.00037209,60]
[393943309,1763122247361,-150.31,0.00037232,60]
[393943310,1763122247370,-159.935097,0.0003724,60]
[393943311,1763122247380,-155.803462,0.0003725,10]
[393943312,1763122247389,-152.66,0.00037256,60]
[393943313,1763122247398,-996.84,0.000373,14]
[393943314,1763122247407,-152.31,0.00037309,60]
[393943315,1763122247416,-150.31,0.00037332,60]
[393943316,1763122247425,-152.66,0.00037356,60]
[393943317,1763122247434,-312.0,0.00037376,120]
[393943318,1763122247443,-400.38245665,0.000374,7]
[393943319,1763122247454,-1701.07,0.000374,14]
[393943320,1763122247463,-152.31,0.00037409,60]
[393943321,1763122247472,-150.31,0.00037432,60]
[393943322,1763122247482,-152.66,0.00037456,60]
[393943323,1763122247491,-5000.0,0.000375,60]
[393943324,1763122247500,-152.31,0.00037509,60]
[393943325,1763122247510,-150.31,0.00037532,60]
[393943326,1763122247519,-1102.65,0.00037543,2]
[393943327,1763122247528,-152.66,0.00037556,60]
[393943328,1763122247537,-152.31,0.00037609,60]
[393943329,1763122247546,-150.31,0.00037632,60]
[393943330,1763122247555,-152.66,0.00037656,60]
[393943331,1763122247564,-152.31,0.00037709,60]
[393943332,1763122247573,-150.31,0.00037732,60]
[393943333,1763122247582,-152.66,0.00037756,60]
[393943334,1763122247591,-152.31,0.00037809,60]
[393943335,1763122247600,-150.31,0.00037832,60]
[393943336,1763122247609,-152.66,0.00037856,60]
[393943337,1763122247618,-152.31,0.00037909,60]
[393943338,1763122247628,-150.31,0.00037932,60]
[393943339,1763122247637,-152.66,0.00037956,60]
[393943340,1763122247646,-60045.82808104,0.00038,5]
[393943347,1763122280529,454.558607,0.00013699,2]
[393943348,1763122280767,454.558607,0.00020187,2]
[393943554,1763122503147,4003.0,0.00018,2]
[393943617,1763122671680,150.0,0.00022569,2]
[393943635,1763123304547,5034.36431976,0.00032877,120]
[393943705,1763123432661,-150.0,0.00025291,2]
[393943706,1763123432671,-240.43717317,0.00026003,2]
[393943707,1763123432680,-748.39837834,0.00026103,2]
[393943708,1763123432693,-557.89602665,0.00026103,2]
[393943709,1763123432703,-454.558607,0.00026676,2]
[393943710,1763123432713,-177.0,0.00027291,2]
[393943711,1763123432723,-1306.29440499,0.00028635,2]
[393943712,1763123432744,-204.0,0.00029291,2]
[393943714,1763123432755,-162.260143,0.00030058,2]
[393943716,1763123432764,-400.0,0.00030845,2]
[393943717,1763123432774,-996.93320214,0.00030846,2]
[393943729,1763123439180,-1164.06679786,0.00030846,2]
[393943730,1763123439189,-620.178,0.00030846,2]
[393943731,1763123439199,-413.0,0.00030846,2]
[393943733,1763123439210,-1306.29440499,0.00031167,2]
[393943735,1763123439219,-231.0,0.00031291,2]
[393943737,1763123439229,-178.43,0.00031387,2]
[393943739,1763123439238,-356.86,0.00032929,2]
[393943741,1763123439247,-162.260143,0.00033,10]
[393943743,1763123439256,-286.786,0.0003303,34]
[393943745,1763123439265,-500.0,0.00033078,20]
[393943747,1763123439274,-500.0,0.00033078,2]
[393943749,1763123439283,-328.4796743,0.00033079,20]
[393943752,1763123439293,-500.0,0.00033079,2]
[393943754,1763123439302,-500.0,0.00033089,2]
[393943757,1763123439314,-500.0,0.00033089,2]
[393943759,1763123439324,-500.0,0.00033089,2]
[393943761,1763123439332,-500.0,0.00033089,2]
[393943763,1763123439342,-500.0,0.00033089,2]
[393943764,1763123439351,-500.0,0.00033089,2]
[393943766,1763123439361,-500.0,0.00033089,2]
[393943767,1763123439370,-477.35453833,0.00033089,2]
[393943768,1763123439379,-583.22,0.00033089,10]
[393943769,1763123439390,-7348.98202576,0.00033089,2]
[393943770,1763123439399,-173204.55446596,0.00033099,2]
[393943803,1763123445282,-988.13,0.00033089,10]
[393943805,1763123445292,-16047.90294542,0.00033099,2]
[393943857,1763123445923,-1940.55086211,0.00033099,2]
[393943860,1763123445935,-105662.5207927,0.00033099,2]
[393943872,1763123446708,-18317.46503957,0.00033099,2]
[393943873,1763123446765,-2816.62197338,0.00033099,2]
[393943917,1763124571239,160.5446381,0.0003287,120]
[393943973,1763124632687,-568.77229668,0.00025217,2]
[393943981,1763124632761,-735.22770332,0.00025217,2]
[393943983,1763124632771,-162.77742037,0.00025217,2]
[393943985,1763124632783,-1786.22435432,0.00026103,2]
[393943987,1763124632793,-192.07735603,0.00027217,2]
[393943989,1763124632803,-484.16738762,0.00027443,2]
[393943991,1763124632812,-432.727052,0.00028455,2]
[393943993,1763124632822,-1786.22435432,0.00028635,2]
[393943995,1763124632831,-312.47352577,0.00029014,2]
[393943997,1763124632841,-221.3772917,0.00029217,2]
[393943999,1763124632851,-300.0,0.00029319,2]
[393944001,1763124632860,-6821.9138898,0.0002932,2]
[393944004,1763124632873,-300.0,0.0003,30]
[393944005,1763124632883,-292.76609398,0.00030204,2]
[393944008,1763124632894,-174.59733852,0.00030229,10]
[393944009,1763124632904,-987.517,0.00030413,2]
[393944011,1763124632913,-2161.0,0.00030413,2]
[393944013,1763124632923,-629.0,0.00030413,2]
[393944015,1763124632933,-418.001,0.00030413,2]
[393944017,1763124632949,-180.73509,0.00030752,60]
[393944019,1763124632959,-206.41634329,0.0003087,2]
[393944021,1763124632969,-500.0,0.000309,5]
[393944023,1763124632979,-500.0,0.000309,5]
[393944025,1763124632989,-503.81513739,0.000309,5]
[393944027,1763124632999,-422.31135048,0.00031012,2]
[393944029,1763124633010,-300.0,0.0003102,30]
[393944031,1763124633020,-300.0,0.0003102,30]
[393944033,1763124633030,-300.0,0.0003102,30]
[393944035,1763124633041,-300.0,0.0003102,30]
[393944037,1763124633050,-300.0,0.0003102,30]
[393944039,1763124633061,-300.0,0.0003102,30]
[393944041,1763124633070,-300.0,0.0003102,30]
[393944043,1763124633081,-300.0,0.0003102,30]
[393944045,1763124633091,-300.0,0.0003102,30]
[393944047,1763124633102,-300.0,0.0003102,30]
[393944049,1763124633112,-300.0,0.0003102,30]
[393944051,1763124633123,-300.0,0.0003102,30]
[393944053,1763124633133,-300.0,0.0003102,30]
[393944055,1763124633142,-300.0,0.0003102,30]
[393944057,1763124633155,-300.0,0.0003102,30]
[393944059,1763124633164,-500.0,0.00031165,2]
[393944061,1763124633173,-160.90860063,0.00031165,2]
[393944063,1763124633183,-207.8914152,0.00031165,2]
[393944065,1763124633197,-500.0,0.00031165,2]
[393944067,1763124633207,-500.0,0.00031165,2]
[393944069,1763124633217,-500.0,0.00031165,2]
[393944071,1763124633226,-500.0,0.00031165,2]
[393944073,1763124633236,-500.0,0.00031165,2]
[393944075,1763124633246,-500.0,0.00031165,2]
[393944077,1763124633256,-500.0,0.00031165,2]
[393944079,1763124633266,-500.0,0.00031165,2]
[393944081,1763124633275,-306.5073768,0.00031165,2]
[393944083,1763124633285,-500.0,0.00031165,2]
[393944085,1763124633294,-500.0,0.00031165,2]
[393944087,1763124633303,-500.0,0.00031165,2]
[393944089,1763124633313,-593.90546136,0.00031165,2]
[393944091,1763124633323,-648.02685677,0.00031165,2]
[393944093,1763124633332,-500.0,0.00031165,2]
[393944095,1763124633341,-500.0,0.00031165,2]
[393944097,1763124633350,-500.0,0.00031165,2]
[393944099,1763124633359,-500.0,0.00031165,2]
[393944101,1763124633369,-500.0,0.00031165,2]
[393944103,1763124633379,-500.0,0.00031165,2]
[393944105,1763124633389,-1786.22435432,0.00031167,2]
[393944107,1763124633398,-500.0,0.00031173,5]
[393944109,1763124633407,-160.0,0.00031178,2]
[393944111,1763124633416,-250.67722736,0.00031217,2]
[393944112,1763124633425,-215.49,0.00031381,2]
[393944113,1763124633438,-311.220671,0.00031392,2]
[393944114,1763124633447,-1000.0,0.00031448,5]
[393944115,1763124633456,-1065.47650412,0.00031448,5]
[393944116,1763124633465,-420.0,0.00031622,2]
[393944117,1763124633474,-600.0,0.00031639,30]
[393944118,1763124633484,-168.0,0.00031687,2]
[393944119,1763124633496,-500.0,0.00031721,5]
[393944121,1763124633599,-260.0,0.00031726,2]
[393944123,1763124633610,-168.0,0.00031994,2]
[393944125,1763124633619,-517.65786823,0.00031996,5]
[393944127,1763124633629,-400.0,0.000321,7]
[393944129,1763124633638,-168.0,0.00032197,2]
[393944131,1763124633648,-25919.76117281,0.00032271,2]
[393944133,1763124633657,-400.57808853,0.00032274,2]
[393944135,1763124633667,-500.0,0.00032373,5]
[393944137,1763124633676,-500.0,0.00032373,5]
[393944139,1763124633691,-500.0,0.00032373,5]
[393944141,1763124633701,-500.0,0.00032373,5]
[393944143,1763124633713,-158.77378924,0.00032379,2]
[393944145,1763124633724,-151.0,0.00032379,2]
[393944147,1763124633735,-234.96692386,0.00032379,2]
[393944149,1763124633745,-500.0,0.0003238,2]
[393944151,1763124633755,-500.0,0.0003238,2]
[393944153,1763124633764,-500.0,0.0003238,2]
[393944155,1763124633774,-500.0,0.0003238,2]
[393944156,1763124633784,-500.0,0.0003238,2]
[393944157,1763124633793,-500.0,0.0003238,2]
[393944158,1763124633803,-200.82451781,0.0003238,2]
[393944159,1763124633813,-151.0,0.0003238,2]
[393944160,1763124633823,-151.00074221,0.0003238,2]
[393944161,1763124633832,-151.0,0.00032406,2]
[393944162,1763124633841,-500.0,0.00032407,2]
[393944163,1763124633850,-500.0,0.00032407,2]
[393944164,1763124633860,-500.0,0.00032407,2]
[393944165,1763124633869,-500.0,0.00032407,2]
[393944166,1763124633879,-500.0,0.00032407,2]
[393944167,1763124633889,-500.0,0.00032407,2]
[393944168,1763124633898,-203.73613308,0.00032407,2]
[393944169,1763124633907,-545.13,0.00032425,10]
[393944170,1763124633916,-312.47352577,0.00032428,2]
[393944171,1763124633926,-464.34301429,0.00032434,2]
[393944172,1763124633939,-500.0,0.00032434,2]
[393944173,1763124633948,-334.77281623,0.00032434,2]
[393944174,1763124633957,-208.09288441,0.00032434,2]
[393944175,1763124633967,-500.0,0.00032435,2]
[393944176,1763124633977,-500.0,0.00032435,2]
[393944177,1763124633986,-500.0,0.00032435,2]
[393944178,1763124633996,-371.93457098,0.00032435,2]
[393944179,1763124634006,-500.0,0.00032435,2]
[393944180,1763124634015,-500.0,0.00032435,2]
[393944181,1763124634025,-933.45,0.00032452,10]
[393944182,1763124634034,-3655.8516907,0.00032457,2]
[393944184,1763124634044,-500.0,0.00032462,2]
[393944186,1763124634054,-500.0,0.00032462,2]
[393944188,1763124634064,-500.0,0.00032462,2]
[393944190,1763124634074,-500.0,0.00032462,2]
[393944192,1763124634084,-500.0,0.00032462,2]
[393944194,1763124634094,-377.40504208,0.00032473,5]
[393944196,1763124634104,-500.0,0.00032473,5]
[393944198,1763124634114,-500.0,0.00032473,2]
[393944200,1763124634124,-24481.0394345,0.0003248,2]
[393944202,1763124634133,-609.9099911,0.0003249,2]
[393944204,1763124634142,-500.0,0.0003249,2]
[393944206,1763124634151,-500.0,0.0003249,2]
[393944208,1763124634160,-500.0,0.0003249,2]
[393944210,1763124634170,-206.41634328,0.00032495,30]
[393944212,1763124634180,-151.0,0.00032495,30]
[393944214,1763124634193,-151.0,0.00032495,30]
[393944216,1763124634203,-500.0,0.00032495,30]
[393944218,1763124634212,-151.0,0.00032495,30]
[393944220,1763124634222,-151.0,0.00032495,30]
[393944222,1763124634231,-500.0,0.00032517,2]
[393944224,1763124634241,-500.0,0.00032517,2]
[393944226,1763124634250,-151.0,0.00032522,30]
[393944228,1763124634260,-500.0,0.00032522,30]
[393944230,1763124634269,-500.0,0.00032544,2]
[393944232,1763124634278,-478.89829743,0.00032544,2]
[393944234,1763124634287,-151.0,0.0003255,30]
[393944236,1763124634297,-500.0,0.0003255,30]
[393944238,1763124634305,-500.0,0.00032572,2]
[393944239,1763124634313,-151.0,0.00032577,30]
[393944241,1763124634323,-500.0,0.00032599,2]
[393944243,1763124634332,-195.44426875,0.00032605,30]
[393944245,1763124634341,-275.968,0.00032605,33]
[393944247,1763124634350,-500.0,0.00032627,2]
[393944249,1763124634359,-500.0,0.00032654,2]
[393944251,1763124634368,-500.0,0.00032681,2]
[393944254,1763124634377,-500.0,0.00032709,2]
[393944256,1763124634387,-500.0,0.00032736,2]
[393944258,1763124634397,-189.32947227,0.00032764,2]
[393944260,1763124634406,-185.28416669,0.000328,20]
[393944262,1763124634416,-3655.8516907,0.0003282,2]
[393944264,1763124634424,-168.0,0.00032826,2]
[393944266,1763124634433,-430.98,0.00032875,2]
[393944267,1763124634445,-150.0,0.00032877,60]
[393944269,1763124634455,-5000.0,0.00032877,120]
[393944271,1763124634464,-1339.61935348,0.00032877,120]
[393944273,1763124634473,-2419.89135951,0.00032879,2]
[393944275,1763124634482,-2419.89135947,0.00032884,2]
[393944276,1763124634492,-2419.89135947,0.0003289,2]
[393944278,1763124634501,-2419.89135947,0.00032895,2]
[393944280,1763124634511,-180.34005252,0.000329,2]
[393944282,1763124634522,-2419.89135947,0.000329,2]
[393944284,1763124634532,-598.80268488,0.00032921,5]
[393944286,1763124634542,-1000.0,0.00032921,5]
[393944288,1763124634552,-440.63772601,0.00032921,5]
[393944289,1763124634561,-1000.0,0.00032921,5]
[393944290,1763124634570,-506.74808053,0.00032973,5]
[393944291,1763124634579,-500.0,0.00032973,5]
[393944292,1763124634589,-179.66978308,0.00032973,5]
[393944293,1763124634599,-503.13600755,0.00032973,5]
[393944294,1763124634609,-500.0,0.00032973,5]
[393944295,1763124634618,-500.51415149,0.00032973,5]
[393944296,1763124634627,-500.0,0.00032973,5]
[393944297,1763124634636,-500.0,0.00032973,5]
[393944298,1763124634645,-500.0,0.00032973,5]
[393944299,1763124634654,-24481.0394345,0.00032979,2]
[393944301,1763124634664,-48962.078869,0.00032979,2]
[393944303,1763124634673,-204.13838956,0.00032979,2]
[393944305,1763124634682,-152.629931,0.00032989,31]
[393944307,1763124634702,-151.0,0.00032989,31]
[393944308,1763124634711,-151.0,0.00032989,31]
[393944309,1763124634720,-151.0,0.00032989,31]
[393944310,1763124634730,-151.0,0.00032989,31]
[393944311,1763124634741,-1265.992409,0.00032989,31]
[393944312,1763124634750,-1265.992409,0.00032989,31]
[393944314,1763124634760,-1265.992409,0.00032989,31]
[393944316,1763124634772,-151.0,0.00032989,31]
[393944317,1763124634782,-151.0,0.00032989,31]
[393944318,1763124634792,-208.495592,0.00032989,31]
[393944319,1763124634801,-151.0,0.00032989,15]
[393944320,1763124634811,-151.0,0.00032989,31]
[393944321,1763124634821,-151.0,0.00032989,31]
[393944322,1763124634830,-151.0,0.00032989,31]
[393944323,1763124634840,-153.485081,0.00032989,31]
[393944324,1763124634850,-151.0,0.00032989,7]
[393944325,1763124634860,-153.410668,0.00032989,31]
[393944326,1763124634869,-151.0,0.00032989,7]
[393944327,1763124634879,-151.0,0.00032989,31]
[393944328,1763124634888,-157.28301,0.00032989,31]
[393944329,1763124634897,-151.0,0.00032989,31]
[393944330,1763124634907,-151.0,0.00032989,31]
[393944331,1763124634916,-151.0,0.00032989,31]
[393944332,1763124634930,-151.0,0.00032989,31]
[393944333,1763124634944,-151.0,0.00032989,31]
[393944334,1763124634953,-156.74359,0.00032989,31]
[393944335,1763124634963,-151.0,0.00032989,31]
[393944336,1763124634972,-151.0,0.00032989,31]
[393944337,1763124634982,-151.0,0.00032989,31]
[393944339,1763124634991,-299.676929,0.00032989,31]
[393944340,1763124635000,-157.30481,0.00032989,31]
[393944341,1763124635010,-151.0,0.00032989,31]
[393944342,1763124635019,-151.0,0.00032989,30]
[393944343,1763124635028,-146886.236607,0.00032989,2]
[393944344,1763124635038,-1122.76114258,0.00032989,2]
[393944345,1763124635047,-202.62,0.00032998,2]
[393944346,1763124635056,-357.196967,0.00032999,2]
[393944347,1763124635066,-151.0,0.00032999,31]
[393944348,1763124635075,-357.196967,0.00032999,2]
[393944349,1763124635084,-357.196967,0.00032999,2]
[393944350,1763124635093,-357.196967,0.00032999,2]
[393944351,1763124635101,-155.602531,0.00032999,31]
[393944352,1763124635111,-151.356279,0.00032999,31]
[393944353,1763124635120,-151.0,0.00032999,31]
[393944354,1763124635129,-461.088143,0.00032999,31]
[393944355,1763124635138,-294.80798207,0.00032999,31]
[393944356,1763124635150,-461.088143,0.00032999,31]
[393944357,1763124635159,-153.874734,0.00032999,31]
[393944358,1763124635168,-461.088143,0.00032999,31]
[393944359,1763124635177,-461.088143,0.00032999,31]
[393944360,1763124635190,-151.0,0.00032999,31]
[393944361,1763124635199,-151.0,0.00032999,31]
[393944362,1763124635208,-151.0,0.00032999,31]
[393944363,1763124635217,-151.0,0.00032999,31]
[393944364,1763124635227,-151.0,0.00032999,31]
[393944365,1763124635237,-151.0,0.00032999,28]
[393944366,1763124635246,-300.065774,0.00032999,31]
[393944367,1763124635255,-151.0,0.00032999,31]
[393944368,1763124635265,-151.0,0.00032999,31]
[393944369,1763124635274,-151.0,0.00032999,2]
[393944370,1763124635283,-151.0,0.00032999,31]
[393944371,1763124635292,-1265.992409,0.00032999,31]
[393944372,1763124635301,-1265.992409,0.00032999,31]
[393944373,1763124635311,-1265.992409,0.00032999,31]
[393944374,1763124635321,-151.0,0.00032999,31]
[393944375,1763124635331,-151.0,0.00032999,15]
[393944376,1763124635341,-151.0,0.00032999,31]
[393944377,1763124635350,-151.0,0.00032999,31]
[393944378,1763124635360,-151.0,0.00032999,7]
[393944379,1763124635370,-151.0,0.00032999,31]
[393944380,1763124635379,-192.876072,0.00032999,31]
[393944381,1763124635388,-151.0,0.00032999,31]
[393944382,1763124635397,-151.0,0.00032999,31]
[393944383,1763124635406,-151.0,0.00032999,31]
[393944384,1763124635415,-151.0,0.00032999,31]
[393944385,1763124635425,-151.0,0.00032999,31]
[393944386,1763124635434,-151.0,0.00032999,31]
[393944387,1763124635447,-777000.0,0.00032999,2]
[393944388,1763124635457,-151.0,0.00033,20]
[393944389,1763124635466,-311.220671,0.00033,10]
[393944390,1763124635475,-151.0,0.00033,18]
[393944391,1763124635484,-151.0,0.00033,17]
[393944392,1763124635493,-151.0,0.00033,11]
[393944393,1763124635503,-151.0,0.00033,13]
[393944394,1763124635512,-151.0,0.00033,11]
[393944395,1763124635521,-151.0,0.00033,13]
[393944396,1763124635530,-500.0,0.00033073,5]
[393944397,1763124635539,-500.0,0.00033073,5]
[393944398,1763124635547,-500.0,0.00033073,5]
[393944399,1763124635555,-500.0,0.00033078,20]
[393944400,1763124635565,-500.0,0.00033078,2]
[393944401,1763124635574,-220.89273789,0.00033078,20]
[393944402,1763124635583,-500.0,0.00033078,2]
[393944403,1763124635592,-500.0,0.00033079,20]
[393944404,1763124635602,-500.0,0.00033079,2]
[393944405,1763124635611,-500.0,0.00033079,2]
[393944406,1763124635620,-500.0,0.00033089,20]
[393944407,1763124635629,-195.44299184,0.00033089,20]
[393944408,1763124635638,-1000.0,0.00033089,2]
[393944409,1763124635647,-1000.0,0.00033089,2]
[393944410,1763124635656,-1000.0,0.00033089,2]
[393944411,1763124635665,-1000.0,0.00033089,2]
[393944412,1763124635674,-615.58028972,0.00033089,2]
[393944413,1763124635683,-500.0,0.00033089,2]
[393944414,1763124635700,-500.0,0.00033089,2]
[393944415,1763124635709,-500.0,0.00033089,2]
[393944416,1763124635718,-500.0,0.00033089,2]
[393944417,1763124635728,-170.28,0.00033089,2]
[393944418,1763124635737,-500.0,0.00033089,2]
[393944419,1763124635747,-423.8810412,0.00033089,2]
[393944420,1763124635756,-5697.38,0.000331,14]
[393944421,1763124635766,-200.71,0.000331,30]
[393944422,1763124635778,-165.02,0.000331,7]
[393944423,1763124635788,-400.0,0.000331,7]
[393944424,1763124635798,-1336.11,0.000331,14]
[393944425,1763124635807,-151.0,0.000331,16]
[393944426,1763124635896,-151.0,0.000331,20]
[393944427,1763124635906,-151.0,0.000331,12]
[393944428,1763124635921,-151.0,0.000331,10]
[393944429,1763124635931,-454.558607,0.00033165,2]
[393944430,1763124635946,-279.97716303,0.00033217,120]
[393944431,1763124635955,-987.0,0.00033413,2]
[393944432,1763124635968,-2161.0,0.00033413,2]
[393944433,1763124635979,-629.0,0.00033413,2]
[393944434,1763124635988,-413.0,0.00033413,2]
[393944435,1763124635997,-510.03567499,0.00033468,5]
[393944436,1763124636006,-1063.01408117,0.00033468,5]
[393944437,1763124636015,-400.0,0.0003351,7]
[393944438,1763124636024,-502.19028823,0.00033521,5]
[393944439,1763124636033,-163.37286706,0.00033521,5]
[393944440,1763124636043,-1000.0,0.00033521,5]
[393944441,1763124636052,-1000.0,0.00033521,5]
[393944442,1763124636062,-1000.0,0.00033521,5]
[393944443,1763124636072,-500.16307664,0.00033621,5]
[393944444,1763124636081,-452.23997508,0.00033621,5]
[393944445,1763124636090,-517.70334212,0.00033621,5]
[393944446,1763124636100,-1786.22435432,0.00033699,2]
[393944447,1763124636110,-68098.4374967,0.00033756,2]
[393944448,1763124636120,-151.0,0.00033756,31]
[393944449,1763124636129,-151.0,0.00033756,31]
[393944450,1763124636139,-5324.3399396,0.00033756,2]
[393944451,1763124636148,-178.321715,0.00033756,31]
[393944452,1763124636157,-151.0,0.00033756,31]
[393944453,1763124636167,-151.0,0.00033756,31]
[393944454,1763124636176,-151.0,0.00033756,31]
[393944455,1763124636191,-151.0,0.00033756,31]
[393944456,1763124636201,-151.0,0.00033756,31]
[393944457,1763124636211,-151.0,0.00033756,31]
[393944458,1763124636220,-357.196967,0.00033756,2]
[393944459,1763124636229,-151.0,0.00033756,31]
[393944460,1763124636239,-357.196967,0.00033756,2]
[393944461,1763124636248,-357.196967,0.00033756,2]
[393944462,1763124636258,-357.196967,0.00033756,2]
[393944463,1763124636267,-151.0,0.00033756,31]
[393944464,1763124636277,-461.088143,0.00033756,31]
[393944465,1763124636287,-461.088143,0.00033756,31]
[393944466,1763124636296,-461.088143,0.00033756,31]
[393944467,1763124636306,-461.088143,0.00033756,31]
[393944468,1763124636315,-151.0,0.00033756,31]
[393944469,1763124636325,-151.0,0.00033756,31]
[393944470,1763124636334,-151.0,0.00033756,31]
[393944471,1763124636343,-151.0,0.00033756,31]
[393944472,1763124636352,-151.0,0.00033756,31]
[393944473,1763124636361,-151.0,0.00033756,31]
[393944474,1763124636371,-151.0,0.00033756,31]
[393944475,1763124636379,-151.764621,0.00033756,2]
[393944476,1763124636388,-151.0,0.00033756,31]
[393944477,1763124636398,-1265.992409,0.00033756,31]
[393944478,1763124636407,-1265.992409,0.00033756,31]
[393944479,1763124636415,-1265.992409,0.00033756,31]
[393944480,1763124636424,-151.0,0.00033756,31]
[393944481,1763124636433,-151.0,0.00033756,15]
[393944482,1763124636448,-151.0,0.00033756,31]
[393944483,1763124636457,-287.652741,0.00033756,31]
[393944484,1763124636466,-151.0,0.00033756,7]
[393944485,1763124636476,-151.0,0.00033756,31]
[393944486,1763124636485,-151.0,0.00033756,31]
[393944487,1763124636494,-151.0,0.00033756,31]
[393944488,1763124636503,-151.0,0.00033756,31]
[393944489,1763124636513,-151.0,0.00033756,31]
[393944490,1763124636522,-181.475353,0.00033756,31]
[393944491,1763124636531,-151.0,0.00033756,31]
[393944492,1763124636541,-151.0,0.00033757,31]
[393944493,1763124636550,-154.91613,0.00033757,31]
[393944494,1763124636560,-197.271834,0.00033757,31]
[393944495,1763124636570,-281.881846,0.00033757,31]
[393944496,1763124636579,-151.0,0.00033757,31]
[393944497,1763124636589,-151.0,0.00033757,31]
[393944498,1763124636598,-151.0,0.00033757,31]
[393944499,1763124636607,-151.0,0.00033757,31]
[393944500,1763124636617,-151.0,0.00033757,31]
[393944501,1763124636626,-151.0,0.00033757,31]
[393944502,1763124636635,-151.0,0.00033757,31]
[393944503,1763124636644,-259.85311,0.00033757,31]
[393944504,1763124636653,-151.0,0.00033757,31]
[393944505,1763124636662,-160.284731,0.00033757,31]
[393944506,1763124636671,-500.0,0.00033773,5]
[393944507,1763124636680,-500.0,0.00033773,5]
[393944508,1763124636695,-150.0,0.00033773,5]
[393944509,1763124636703,-500.0,0.0003382,12]
[393944510,1763124636713,-186.38624706,0.00033903,2]
[393944511,1763124636722,-335.4952447,0.00033903,2]
[393944512,1763124636731,-624.68570858,0.00033903,2]
[393944513,1763124636741,-1124.43427544,0.00033903,2]
[393944514,1763124636750,-1151.54864088,0.00034,2]
[393944515,1763124636759,-1500.05943707,0.00034068,5]
[393944516,1763124636769,-758.70310856,0.00034068,5]
[393944517,1763124636778,-1500.0,0.00034068,5]
[393944518,1763124636789,-400.0,0.000341,7]
[393944519,1763124636798,-587.0,0.00034105,2]
[393944520,1763124636807,-500.0,0.00034144,5]
[393944521,1763124636816,-168.0,0.00034174,2]
[393944522,1763124636825,-1000.0,0.00034321,5]
[393944523,1763124636834,-500.0,0.00034321,5]
[393944524,1763124636846,-300.0,0.00034321,5]
[393944525,1763124636866,-1998.99426745,0.00034336,2]
[393944526,1763124636875,-596.43599058,0.0003435,2]
[393944527,1763124636885,-646.47,0.00034369,2]